bitfinex-derivatives/quotes_SOLF0:USTF0_20250924
["timestamp","ask_amount","ask_price","bid_price","bid_amount"]
[1758736616106,3.35626238,215.08,215.06,12.1227]
[1758736616306,3.35613448,215.07,215.06,4.1827]
[1758736616507,3.35613448,215.07,215.04,4.183]
[1758736616713,3.35613448,215.06,215.04,12.123]
[1758736617006,3.35613448,215.05,215.04,12.123]
[1758736620912,10.99613448,215.05,215.04,4.183]
[1758736621114,7.64,215.04,215.0,7.4]
[1758736621309,3.35613448,215.03,214.96,7.4]
[1758736621611,3.35613448,215.02,214.96,7.4]
[1758736621800,3.35613448,215.01,214.94,65.1016]
[1758736622000,7.64,215.05,215.01,4.1836]
[1758736622203,7.64,215.03,215.01,4.1836]
[1758736622400,3.32797646,215.06,215.01,11.5836]
[1758736622401,3.35605535,215.02,215.01,11.5836]
[1758736623416,3.35605535,215.02,215.01,4.1836]
[1758736626816,7.64,215.08,215.04,11.5831]
[1758736627008,3.35211508,215.07,215.0,65.0823]
[1758736627204,3.35211508,215.06,215.01,7.4]
[1758736627414,3.35211508,215.06,215.0,65.0823]
[1758736627415,3.35211508,215.05,215.0,65.0823]
[1758736627611,7.64,215.08,215.01,7.4]
[1758736627813,3.35199372,215.07,215.01,7.4]
[1758736628116,3.35199372,215.06,215.01,7.4]
[1758736628317,3.35199372,215.05,215.04,11.5831]
[1758736628510,3.35199372,215.07,215.0,65.0823]
[1758736628708,3.35199372,215.07,215.01,7.4]
[1758736630218,3.35199372,215.07,215.05,4.1828]
[1758736630915,3.35199372,215.06,215.05,4.1828]
[1758736631517,3.35199372,215.07,215.05,4.1828]
[1758736631716,3.35199372,215.06,215.05,4.1828]
[1758736632112,3.35199372,215.07,215.05,4.1828]
[1758736632424,3.35199372,215.06,215.05,4.1828]
[1758736632814,7.64,215.08,215.05,4.1828]
[1758736633112,3.35199372,215.07,215.05,4.1828]
[1758736634421,3.35199372,215.07,215.06,7.4]
[1758736635018,3.35199372,215.07,215.05,11.5828]
[1758736635225,3.35199372,215.06,215.05,11.5828]
[1758736635916,3.35199372,215.06,215.03,11.5833]
[1758736636116,3.35199372,215.05,215.03,11.5833]
[1758736636317,3.35199372,215.04,215.03,11.5833]
[1758736639023,7.64,215.08,215.05,4.1829]
[1758736639324,3.34671632,215.07,215.05,4.1829]
[1758736639522,3.34671632,215.06,215.05,4.1829]
[1758736639920,3.34671632,215.07,215.05,4.1829]
[1758736640224,3.34671632,215.06,215.05,4.1829]
[1758736641026,10.98671632,215.07,215.05,4.1829]
[1758736641326,3.34671632,215.06,215.05,4.1829]
[1758736642027,3.34671632,215.06,215.05,11.5829]
[1758736642227,3.32797646,215.13,215.04,7.4]
[1758736642433,3.34857892,215.12,215.06,7.4]
[1758736642625,3.34857892,215.11,215.06,7.4]
[1758736642827,3.34857892,215.1,215.06,7.4]
[1758736643028,3.34857892,215.09,215.06,7.4]
[1758736643323,3.34857892,215.08,215.06,7.4]
[1758736643552,3.34857892,215.07,215.06,11.5827]
[1758736643828,3.34857892,215.13,215.06,7.4]
[1758736644029,11.14857892,215.12,215.1,4.1819]
[1758736644229,5.21194176,215.14,215.03,65.072]
[1758736644230,7.8,215.1,215.04,7.86]
[1758736644431,3.34971726,215.09,215.04,7.86]
[1758736644630,3.34971726,215.08,215.04,7.86]
[1758736644831,3.34971726,215.07,215.04,7.86]
[1758736645036,3.34971726,215.06,215.04,7.86]
[1758736645237,7.8,215.1,215.08,4.1823]
[1758736645439,3.34995702,215.09,215.08,4.1823]
[1758736645736,3.34995702,215.09,215.08,12.0423]
[1758736650441,7.8,215.17,215.14,7.86]
[1758736650644,9.93015353,215.18,215.1,7.86]
[1758736651137,5.21194176,215.19,215.12,7.86]
[1758736651138,7.8,215.19,215.12,7.86]
[1758736653344,7.8,215.19,215.15,4.1808]
[1758736653846,2.13015353,215.2,215.15,4.1808]
[1758736654042,7.8,215.19,215.15,4.1808]
[1758736654248,13.01194176,215.25,215.17,7.86]
[1758736654447,7.8,215.25,215.17,7.86]
[1758736654845,2.13015353,215.24,215.17,7.86]
[1758736655247,2.13015353,215.24,215.19,4.1801]
[1758736655442,7.8,215.23,215.19,4.1801]
[1758736655642,2.13015353,215.24,215.19,12.0401]
[1758736656147,7.8,215.23,215.19,12.0401]
[1758736656748,7.8,215.23,215.2,4.1799]
[1758736659249,7.8,215.23,215.21,4.1797]
[1758736661951,7.8,215.27,215.2,7.86]
[1758736662149,9.93015353,215.27,215.2,7.86]
[1758736662343,3.31473933,215.26,215.2,7.86]
[1758736662548,3.31473933,215.25,215.19,7.86]
[1758736662851,7.8,215.23,215.19,7.86]
[1758736663240,7.8,215.23,215.18,67.15775353]
[1758736664147,3.31373245,215.22,215.19,7.86]
[1758736664347,7.8,215.23,215.21,4.1796]
[1758736664543,3.31284968,215.22,215.21,4.1796]
[1758736665254,7.8,215.23,215.21,4.1796]
[1758736668251,7.8,215.23,215.18,2.13015353]
[1758736668252,7.8,215.3,215.23,7.86]
[1758736668455,3.31455335,215.29,215.25,7.86]
[1758736668659,7.8,215.3,215.24,2.13015353]
[1758736668660,3.31455335,215.28,215.26,4.1787]
[1758736668950,7.8,215.33,215.26,7.86]
[1758736669156,3.31354381,215.32,215.26,7.86]
[1758736669357,3.31354381,215.31,215.26,7.86]
[1758736669560,11.11354381,215.3,215.26,7.86]
[1758736669753,3.31354381,215.29,215.26,7.86]
[1758736669953,7.8,215.3,215.26,7.86]
[1758736670155,3.31258466,215.29,215.26,7.86]
[1758736670357,7.8,215.3,215.26,7.86]
[1758736670660,11.11173444,215.29,215.26,7.86]
[1758736670958,3.31181725,215.28,215.26,7.86]
[1758736671159,7.8,215.29,215.26,7.86]
[1758736671459,7.8,215.29,215.26,12.0387]
[1758736673356,2.13015353,215.33,215.26,12.0387]
[1758736673557,2.13015353,215.29,215.24,4.1792]
[1758736673762,3.30929271,215.28,215.24,4.1792]
[1758736674254,7.67,215.27,215.24,4.1792]
[1758736674460,2.13015353,215.27,215.24,4.1792]
[1758736674658,7.67,215.26,215.22,4.1795]
[1758736674965,7.67,215.25,215.22,4.1795]
[1758736676754,7.67,215.25,215.24,4.1792]
[1758736676962,2.13015353,215.27,215.25,7.29]
[1758736677553,9.80015353,215.27,215.24,4.1792]
[1758736678063,2.13015353,215.27,215.25,7.29]
[1758736678264,2.13015353,215.29,215.25,7.29]
[1758736678563,3.30980205,215.28,215.24,4.1792]
[1758736678764,3.30980205,215.27,215.25,7.29]
[1758736678967,9.80015353,215.29,215.24,4.1792]
[1758736679262,3.30980086,215.28,215.25,7.29]
[1758736679460,3.30980086,215.27,215.25,4.1789]
[1758736679766,2.13015353,215.31,215.22,7.29]
[1758736679965,3.30992501,215.3,215.22,7.29]
[1758736680263,2.13015353,215.33,215.24,7.67]
[1758736680466,3.30983894,215.32,215.25,7.67]
[1758736680663,3.30983894,215.31,215.3,11.8479]
[1758736682657,7.23,215.34,215.32,4.1777]
[1758736682863,3.30929485,215.33,215.32,4.1777]
[1758736683062,3.30929485,215.33,215.3,7.67]
[1758736683266,3.30929485,215.32,215.3,7.67]
[1758736683464,7.23,215.34,215.3,7.67]
[1758736683665,3.30934227,215.33,215.3,7.67]
[1758736683865,3.30934227,215.32,215.3,7.67]
[1758736684068,7.23,215.34,215.3,7.67]
[1758736684265,3.30949686,215.33,215.31,4.1777]
[1758736684463,3.30949686,215.32,215.31,4.1777]
[1758736684765,3.30949686,215.32,215.3,7.67]
[1758736684967,7.23,215.34,215.3,7.67]
[1758736685168,12.66965039,215.33,215.3,7.67]
[1758736685370,10.53949686,215.32,215.28,11.8483]
[1758736685571,7.23,215.32,215.28,7.67]
[1758736685871,12.67032725,215.31,215.23,7.67]
[1758736686066,3.31017372,215.3,215.23,7.67]
[1758736687175,3.31017372,215.3,215.25,4.1789]
[1758736687474,7.23,215.3,215.26,7.67]
[1758736687674,3.31264548,215.29,215.26,7.67]
[1758736687875,7.23,215.3,215.26,7.67]
[1758736688180,3.31264548,215.29,215.26,7.67]
[1758736688374,3.31264548,215.28,215.26,7.67]
[1758736688679,7.23,215.3,215.26,7.67]
[1758736688869,3.31338774,215.29,215.26,7.67]
[1758736689065,10.54338774,215.28,215.24,7.67]
[1758736689266,7.23,215.28,215.24,7.67]
[1758736690270,7.23,215.28,215.23,4.1794]
[1758736690465,7.23,215.28,215.24,7.67]
[1758736690965,3.31555292,215.27,215.23,4.1794]
[1758736691178,7.23,215.28,215.24,7.67]
[1758736691374,3.3168485,215.27,215.24,7.67]
[1758736691574,7.23,215.28,215.24,7.67]
[1758736691776,10.5468485,215.27,215.24,7.67]
[1758736691977,3.3168485,215.26,215.24,7.67]
[1758736692975,3.3168485,215.26,215.21,11.8498]
[1758736692976,7.23,215.25,215.21,11.8498]
[1758736693181,3.3168485,215.24,215.22,7.67]
[1758736696582,3.3168485,215.23,215.22,7.67]
[1758736696780,3.3168485,215.26,215.22,7.67]
[1758736697090,7.23,215.26,215.22,7.67]
[1758736697271,10.55410613,215.25,215.22,7.67]
[1758736697472,3.32410613,215.24,215.22,7.67]
[1758736697678,3.32410613,215.23,215.22,7.67]
[1758736697872,3.32410613,215.23,215.21,4.1798]
[1758736698071,2.13015353,215.27,215.22,4.1795]
[1758736698278,3.32526262,215.26,215.23,7.67]
[1758736698480,3.32526262,215.25,215.23,7.67]
[1758736698680,3.32526262,215.24,215.23,7.67]
[1758736699079,3.32526262,215.26,215.23,7.67]
[1758736699283,3.32526262,215.25,215.23,7.67]
[1758736699482,3.32526262,215.24,215.23,7.67]
[1758736699780,10.55526262,215.26,215.23,7.67]
[1758736700079,3.32526262,215.25,215.23,11.8493]
[1758736703484,3.32526262,215.25,215.23,7.67]
[1758736703685,7.27,215.23,215.21,4.1797]
[1758736703886,10.59526262,215.22,215.19,11.8501]
[1758736704086,3.32526262,215.21,215.19,11.8501]
[1758736704482,3.32526262,215.21,215.19,4.1801]
[1758736704784,7.27,215.24,215.21,7.41]
[1758736705081,3.32916769,215.23,215.21,7.41]
[1758736705285,3.32916769,215.22,215.21,7.41]
[1758736705587,3.32916769,215.24,215.21,4.1797]
[1758736705783,3.32962014,215.23,215.22,7.41]
[1758736709988,3.32962014,215.23,215.2,7.41]
[1758736710288,3.32962014,215.22,215.19,4.1801]
[1758736710485,9.39034176,215.29,215.2,7.41]
[1758736710788,3.32426156,215.27,215.2,7.41]
[1758736710985,10.60118591,215.26,215.2,7.41]
[1758736711182,7.27,215.24,215.2,7.41]
[1758736711481,7.27,215.22,215.17,4.1805]
[1758736711688,10.60118591,215.21,215.17,4.1805]
[1758736711890,3.33118591,215.2,215.18,7.41]
[1758736712486,3.33118591,215.2,215.19,7.41]
[1758736712686,10.60118591,215.23,215.19,7.41]
[1758736712888,3.33118591,215.22,215.19,7.41]
[1758736713090,3.33118591,215.21,215.18,4.1803]
[1758736713391,3.33118591,215.2,215.19,7.41]
[1758736713688,3.33118591,215.22,215.19,7.41]
[1758736713885,3.33118591,215.21,215.19,7.41]
[1758736714086,3.33118591,215.2,215.19,7.41]
[1758736714590,3.33118591,215.22,215.19,7.41]
[1758736714888,3.33118591,215.21,215.19,7.41]
[1758736715187,3.33118591,215.2,215.19,7.41]
[1758736715388,3.33118591,215.22,215.19,7.41]
[1758736715582,3.33118591,215.21,215.19,7.41]
[1758736715782,3.33118591,215.2,215.19,7.41]
[1758736715984,3.33118591,215.2,215.19,11.5901]
[1758736718993,3.33118591,215.2,215.19,7.41]
[1758736719190,3.79118591,215.2,215.15,7.41]
[1758736719391,10.60118591,215.19,215.08,7.41]
[1758736719588,3.33118591,215.18,215.08,7.41]
[1758736719788,3.33118591,215.17,215.08,7.41]
[1758736720099,3.33118591,215.16,215.08,7.41]
[1758736720291,3.33118591,215.15,215.08,7.41]
[1758736720494,3.33118591,215.14,215.08,7.41]
[1758736720693,3.33118591,215.13,215.08,7.41]
[1758736720889,7.27,215.19,215.11,4.1816]
[1758736721091,3.32996824,215.18,215.11,11.5916]
[1758736721290,3.32996824,215.17,215.11,11.5916]
[1758736721495,10.59996824,215.16,215.12,7.41]
[1758736721795,3.32996824,215.15,215.12,7.41]
[1758736721995,3.32996824,215.14,215.12,7.41]
[1758736722195,3.32996824,215.13,215.12,7.41]
[1758736723196,7.27,215.16,215.12,7.41]
[1758736723397,10.59556939,215.15,215.12,7.41]
[1758736723594,3.32556939,215.14,215.11,4.1816]
[1758736723794,3.32556939,215.13,215.11,4.1816]
[1758736724196,7.27,215.14,215.11,11.5916]
[1758736725794,7.27,215.14,215.12,7.41]
[1758736726092,7.27,215.2,215.12,7.41]
[1758736726297,7.27,215.18,215.12,7.41]
[1758736726498,7.27,215.16,215.12,7.41]
[1758736726698,7.27,215.14,215.11,4.1816]
[1758736726897,7.27,215.17,215.11,4.1816]
[1758736727098,3.32308749,215.16,215.11,4.1816]
[1758736727299,7.27,215.14,215.11,11.5916]
[1758736727999,7.27,215.14,215.12,7.41]
[1758736728597,7.27,215.12,215.09,7.41]
[1758736728902,7.27,215.12,214.96,65.0953]
[1758736728903,3.32290932,215.11,215.02,7.41]
[1758736729099,3.32290932,215.1,215.02,7.41]
[1758736729299,7.27,215.12,215.02,7.41]
[1758736729602,3.32257616,215.11,215.02,7.41]
[1758736729798,7.27,215.12,215.05,4.1829]
[1758736729999,7.27,215.1,215.05,4.1829]
[1758736730200,7.27,215.08,215.05,4.1829]
[1758736730505,7.27,215.08,215.05,11.5929]
[1758736731000,7.27,215.11,215.05,4.1829]
[1758736731201,3.32426156,215.12,215.05,4.1829]
[1758736731202,3.3216975,215.1,215.05,4.1829]
[1758736731399,7.27,215.08,215.06,4.1826]
[1758736731601,7.27,215.12,215.06,4.1826]
[1758736731808,3.32036447,215.11,215.05,7.41]
[1758736731997,10.59426156,215.17,215.08,7.41]
[1758736732201,3.31953084,215.16,215.08,7.41]
[1758736732497,3.31953084,215.15,215.08,7.41]
[1758736732701,3.31953084,215.14,215.08,7.41]
[1758736732898,7.27,215.17,215.09,65.0559]
[1758736733103,3.31889275,215.16,215.1,7.41]
[1758736733300,3.31889275,215.15,215.1,7.41]
[1758736733506,7.27,215.19,215.12,11.5914]
[1758736733807,3.31923449,215.18,215.12,11.5914]
[1758736734107,7.69,215.16,215.12,11.5914]
[1758736734308,3.31923449,215.15,215.12,11.5914]
[1758736734913,3.31923449,215.14,215.12,11.5914]
[1758736735111,7.69,215.13,215.09,7.68]
[1758736735309,7.69,215.13,215.1,4.1819]
[1758736735709,7.69,215.13,215.1,11.8619]
[1758736736617,7.69,215.13,215.11,4.1816]
[1758736738412,7.69,215.16,215.11,4.1816]
[1758736738607,3.32426156,215.17,215.11,4.1816]
[1758736738608,7.69,215.14,215.11,4.1816]
[1758736738812,7.69,215.12,215.11,4.1816]
[1758736739512,3.32426156,215.16,215.11,4.1816]
[1758736739714,3.31947508,215.15,215.11,4.1816]
[1758736739915,7.64,215.13,215.11,4.1816]
[1758736740209,7.64,215.15,215.11,4.1816]
[1758736740411,7.64,215.13,215.11,4.1816]
[1758736741216,7.64,215.15,215.11,4.1816]
[1758736741417,3.31947956,215.14,215.11,11.5216]
[1758736741618,3.31947956,215.13,215.11,11.5216]
[1758736741820,7.64,215.15,215.12,4.1814]
[1758736742026,7.64,215.2,215.11,7.34]
[1758736742218,3.31874762,215.19,215.11,7.34]
[1758736742519,3.31874762,215.18,215.11,7.34]
[1758736742815,3.31874762,215.17,215.11,7.34]
[1758736743016,7.64,215.2,215.11,7.34]
[1758736743216,3.31905233,215.19,215.16,4.1808]
[1758736743520,3.31905233,215.18,215.16,11.5208]
[1758736743718,3.31905233,215.17,215.16,11.5208]
[1758736744121,3.31905233,215.19,215.16,11.5208]
[1758736744420,3.31905233,215.18,215.16,11.5208]
[1758736744616,3.31905233,215.17,215.16,11.5208]
[1758736744817,3.31905233,215.19,215.16,11.5208]
[1758736745220,3.31905233,215.19,215.18,4.1804]
[1758736745621,10.95905233,215.21,215.18,4.1804]
[1758736745831,3.31905233,215.2,215.18,4.1804]
[1758736746017,7.64,215.21,215.18,4.1804]
[1758736746216,3.32039139,215.2,215.18,4.1804]
[1758736746422,3.32039139,215.19,215.18,11.5204]
[1758736746623,7.64,215.24,215.2,4.18]
[1758736746925,7.64,215.22,215.2,4.18]
[1758736747125,3.32062796,215.21,215.2,4.18]
[1758736748331,3.32062796,215.21,215.18,7.34]
[1758736748332,7.64,215.2,215.14,7.34]
[1758736748633,7.64,215.18,215.14,7.34]
[1758736748926,10.96062796,215.17,215.11,7.34]
[1758736749124,7.64,215.15,215.11,7.34]
[1758736749430,7.64,215.15,215.13,4.1813]
[1758736752629,7.64,215.18,215.13,4.1813]
[1758736752831,3.32450698,215.17,215.13,4.1813]
[1758736753031,10.96450698,215.16,215.13,4.1813]
[1758736753231,3.32450698,215.15,215.13,11.5213]
[1758736753532,3.32450698,215.15,215.14,7.34]
[1758736753826,3.32521785,215.18,215.11,7.34]
[1758736754131,3.32521785,215.17,215.16,4.1808]
[1758736756226,3.32521785,215.17,215.16,11.5208]
[1758736758537,5.21194176,215.26,215.22,7.34]
[1758736758729,7.64,215.26,215.22,7.34]
[1758736759233,12.85194176,215.26,215.22,11.5195]
[1758736759432,7.64,215.25,215.22,7.34]
[1758736759635,8.53620332,215.27,215.18,7.34]
[1758736759835,12.85194176,215.28,215.18,7.34]
[1758736760135,7.64,215.28,215.18,7.34]
[1758736760529,7.64,215.28,215.21,4.1798]
[1758736760728,7.64,215.28,215.2,7.34]
[1758736761631,7.64,215.29,215.23,4.1793]
[1758736761831,7.64,215.29,215.21,7.34]
[1758736763336,116.72426156,215.3,215.24,4.1791]
[1758736763735,7.64,215.29,215.21,7.34]
[1758736764933,354.65620332,215.33,215.23,7.34]
[1758736765137,349.44426156,215.33,215.23,7.34]
[1758736766127,353.62186156,215.33,215.25,4.179]
[1758736766331,3.32426156,215.3,215.25,4.179]
[1758736766532,2.12746016,215.27,215.25,4.179]
[1758736766732,7.72,215.27,215.25,4.179]
[1758736766935,2.12746016,215.31,215.23,7.34]
[1758736769329,2.12746016,215.31,215.22,65.0159]
[1758736769330,9.84746016,215.31,215.28,4.1783]
[1758736769729,9.84746016,215.31,215.25,7.34]
[1758736770440,11.00345677,215.3,215.27,4.1785]
[1758736770641,7.72,215.28,215.25,7.34]
[1758736772440,7.72,215.28,215.25,11.519]
[1758736776439,7.72,215.28,215.26,4.1787]
[1758736778744,2.12746016,215.29,215.27,4.1785]
[1758736778939,2.12746016,215.31,215.28,7.34]
[1758736779136,3.28228655,215.3,215.28,7.34]
[1758736779438,3.28228655,215.29,215.28,7.34]
[1758736779642,3.28228655,215.29,215.27,4.1785]
[1758736779838,7.72,215.3,215.27,4.1785]
[1758736780045,11.0022386,215.29,215.27,4.1785]
[1758736780344,2.12746016,215.31,215.27,4.1785]
[1758736780540,3.28232739,215.3,215.27,4.1785]
[1758736780738,7.72,215.28,215.25,4.179]
[1758736782645,7.72,215.28,215.26,4.1787]
[1758736783244,7.72,215.26,215.24,4.1791]
[1758736783447,9.84746016,215.27,215.21,7.34]
[1758736783648,3.28441552,215.26,215.2,65.0225]
[1758736783945,2.12746016,215.27,215.2,72.3625]
[1758736784145,3.28441552,215.26,215.2,72.3625]
[1758736784345,2.12746016,215.27,215.2,72.3625]
[1758736784547,3.28534576,215.26,215.2,72.3625]
[1758736784845,2.12746016,215.27,215.2,72.3625]
[1758736785041,3.28634201,215.26,215.2,7.34]
[1758736785248,2.12746016,215.27,215.2,7.34]
[1758736785547,3.2865374,215.26,215.2,7.34]
[1758736785747,2.12746016,215.27,215.2,7.34]
[1758736785950,3.286538,215.26,215.2,7.34]
[1758736786246,3.28753641,215.25,215.23,4.1792]
[1758736786435,7.72,215.26,215.23,4.1792]
[1758736786837,3.28753641,215.25,215.23,4.1792]
[1758736787042,7.72,215.26,215.23,4.1792]
[1758736787248,3.28791477,215.25,215.23,4.1792]
[1758736787442,7.72,215.26,215.23,4.1792]
[1758736787644,7.72,215.24,215.21,4.1798]
[1758736787946,7.72,215.24,215.21,11.5198]
[1758736790148,7.72,215.24,215.17,7.34]
[1758736790149,3.28945385,215.23,215.17,7.34]
[1758736790356,7.72,215.21,215.17,7.34]
[1758736790847,9.84746016,215.21,215.17,7.34]
[1758736791049,3.29038031,215.2,215.17,7.34]
[1758736791351,9.84746016,215.21,215.17,7.34]
[1758736791651,3.2907383,215.2,215.17,7.34]
[1758736791851,9.84746016,215.21,215.17,7.34]
[1758736792048,3.2907377,215.2,215.17,7.34]
[1758736792353,9.84746016,215.21,215.17,7.34]
[1758736792555,3.29104574,215.2,215.17,7.34]
[1758736792749,9.84746016,215.21,215.17,7.34]
[1758736792956,3.29104634,215.2,215.17,7.34]
[1758736793254,9.84746016,215.21,215.17,7.34]
[1758736793442,3.29136032,215.2,215.17,7.34]
[1758736793646,9.84746016,215.21,215.17,7.34]
[1758736793841,3.29136032,215.2,215.17,7.34]
[1758736794047,9.84746016,215.21,215.17,7.34]
[1758736794250,3.2919297,215.2,215.17,7.34]
[1758736794457,3.2919297,215.19,215.17,7.34]
[1758736795251,10.4919297,215.19,215.15,7.62]
[1758736795449,7.2,215.19,215.14,4.1811]
[1758736795943,7.2,215.19,215.16,7.62]
[1758736796148,2.12746016,215.22,215.16,7.62]
[1758736796348,10.49307985,215.21,215.13,7.62]
[1758736796548,3.29307985,215.2,215.13,7.62]
[1758736797350,3.29307985,215.2,215.14,7.62]
[1758736797549,2.12746016,215.24,215.15,2.12746016]
[1758736797750,3.29310032,215.23,215.16,7.62]
[1758736797950,3.29310032,215.22,215.16,7.62]
[1758736798257,3.29310032,215.22,215.15,2.12746016]
[1758736798258,3.29310032,215.21,215.2,7.62]
[1758736798557,2.12746016,215.27,215.2,7.62]
[1758736798856,3.29389445,215.26,215.2,7.62]
[1758736799052,3.29389445,215.25,215.18,7.62]
[1758736799243,3.29389445,215.24,215.22,7.62]
[1758736799448,3.29389445,215.23,215.22,7.62]
[1758736799856,3.29389445,215.24,215.22,7.62]
[1758736800052,3.29389445,215.23,215.22,7.62]
[1758736800252,3.29389445,215.23,215.22,7.91]
[1758736800453,3.29389445,215.27,215.21,4.1797]
[1758736800658,7.25,215.25,215.21,12.0897]
[1758736800859,3.29389445,215.24,215.21,12.0897]
[1758736801760,3.29389445,215.24,215.22,4.1795]
[1758736801956,3.29389445,215.23,215.22,12.0895]
[1758736802156,10.54389445,215.25,215.22,12.0895]
[1758736802358,3.29389445,215.24,215.22,12.0895]
[1758736802553,3.29389445,215.24,215.22,4.1795]
[1758736802758,10.54389445,215.24,215.22,4.1795]
[1758736802952,3.29389445,215.23,215.22,4.1795]
[1758736803356,3.29389445,215.23,215.2,4.1799]
[1758736803554,3.29389445,215.23,215.2,12.0899]
[1758736803758,3.29389445,215.23,215.2,4.1799]
[1758736803959,3.29389445,215.22,215.21,12.0897]
[1758736804161,3.29389445,215.22,215.19,7.91]
[1758736804459,9.37746016,215.27,215.19,7.91]
[1758736804661,3.29778952,215.26,215.23,12.0894]
[1758736804855,3.29778952,215.25,215.24,7.91]
[1758736809862,3.29778952,215.25,215.23,4.1794]
[1758736810166,3.29778952,215.24,215.23,4.1794]
[1758736810365,3.29778952,215.24,215.23,12.0894]
[1758736811761,3.29778952,215.24,215.23,7.91]
[1758736811962,3.29778952,215.24,215.21,4.1798]
[1758736812162,3.29778952,215.23,215.22,7.91]
[1758736813463,3.29778952,215.23,215.21,4.1798]
[1758736813660,3.29778952,215.22,215.21,12.0898]
[1758736815465,7.25,215.29,215.26,12.0888]
[1758736815864,9.37746016,215.29,215.21,7.91]
[1758736816070,7.25,215.29,215.21,7.91]
[1758736816469,2.12746016,215.28,215.24,4.1792]
[1758736816872,7.25,215.27,215.24,4.1792]
[1758736817074,2.12746016,215.28,215.24,4.1792]
[1758736817277,7.25,215.27,215.24,4.1792]
[1758736817477,7.25,215.29,215.24,4.1792]
[1758736817677,7.25,215.28,215.24,4.1792]
[1758736817880,2.12746016,215.29,215.24,4.1792]
[1758736818078,7.25,215.28,215.24,4.1792]
[1758736818690,2.12746016,215.29,215.24,4.1792]
[1758736818878,7.25,215.28,215.24,4.1792]
[1758736819380,2.12746016,215.29,215.24,4.1792]
[1758736819776,7.25,215.28,215.21,65.0196]
[1758736819979,7.25,215.28,215.22,7.91]
[1758736820483,7.25,215.28,215.25,4.179]
[1758736820886,7.25,215.28,215.23,4.1793]
[1758736821186,7.25,215.28,215.22,7.91]
[1758736822184,2.12746016,215.29,215.24,4.1791]
[1758736822387,7.25,215.28,215.24,4.1791]
[1758736822587,2.12746016,215.29,215.24,4.1791]
[1758736822887,7.25,215.28,215.24,4.1791]
[1758736823276,2.12746016,215.29,215.24,4.1791]
[1758736823884,7.89,215.28,215.24,4.1791]
[1758736824084,2.12746016,215.29,215.24,4.1791]
[1758736824285,7.89,215.28,215.25,4.1789]
[1758736824488,7.89,215.28,215.22,7.37]
[1758736827291,7.89,215.28,215.26,4.1788]
[1758736827488,3.30500233,215.27,215.26,4.1788]
[1758736827993,11.19500233,215.27,215.26,4.1788]
[1758736828293,3.30500233,215.27,215.26,4.1788]
[1758736829089,11.19500233,215.27,215.26,4.1788]
[1758736829290,11.19500233,215.27,215.24,11.5491]
[1758736829586,3.30500233,215.26,215.24,11.5491]
[1758736829788,3.30500233,215.25,215.24,11.5491]
[1758736834703,7.89,215.28,215.25,4.1789]
[1758736834903,11.19406607,215.27,215.25,4.1789]
[1758736835100,3.30406607,215.26,215.25,4.1789]
[1758736836597,3.30406607,215.26,215.25,11.5489]
[1758736837200,3.30406607,215.26,215.25,4.1789]
[1758736837798,3.30406607,215.26,215.25,11.5489]
[1758736839200,11.19406607,215.26,215.25,4.1789]
[1758736839601,3.30406607,215.26,215.25,4.1789]
[1758736839903,3.30406607,215.26,215.25,11.5489]
[1758736840805,3.30406607,215.26,215.25,4.1789]